[Event "1st Turkish League 2017"]
[Site "Konya"]
[Date "2017.07.20"]
[Round "6"]
[White "Annaberdiyev, Babageldi"]
[Black "Uzunoglu, Efe Kerem"]
[Result "0-1"]
[ECO "D03"]
[WhiteElo "2262"]
[BlackElo "2058"]
[Annotator "ChessBase"]
[PlyCount "152"]
[EventType "team-tourn"]
[EventCountry "TUR"]
[SourceTitle "playchess.com"]
[Source "ChessBase"]
[SourceQuality "1"]
[TimeControl "5400+30"]

1. Nf3 {[%emt 0:00:30]} Nf6 {[%emt 0:01:00]} 2. d4 {[%emt 0:00:30]} g6 {[%emt 0:00:30]} 3. Bg5 {[%emt 0:00:30]} Bg7 {[%emt 0:00:30]} 4. Nbd2 {[%emt 0:00:30]} d5 {[%emt 0:00:30]} 5. e3 {[%emt 0:00:00]} O-O {[%emt 0:00:00]} 6. Bd3 {[%emt 0:00:00]} c5 {[%emt 0:00:00]} 7. c3 {[%emt 0:00:00]} b6 {[%emt 0:00:00]} 8. O-O {[%emt 0:00:00]} Bb7 {[%emt 0:02:00]} 9. a4 {[%emt 0:10:30]} Nc6 {[%emt 0:03:30]} 10. Qb1 {[%emt 0:02:30]} a5 {[%emt 0:14:30]} 11. h3 {[%emt 0:04:30]} Nd7 {[%emt 0:15:30]} 12. Qa2 {[%emt 0:08:30]} Qc7 {[%emt 0:01:30]} 13. Bb5 {[%emt 0:00:30]} e6 {[%emt 0:11:30]} 14. Bf4 {[%emt 0:01:30]} Qd8 {[%emt 0:09:30]} 15. Bd6 {[%emt 0:01:30]} Re8 {[%emt 0:00:30]} 16. Rad1 {[%emt 0:01:30]} Bf8 {[%emt 0:03:30]} 17. Bxf8 {[%emt 0:02:30]} Rxf8 {[%emt 0:00:00]} 18. e4 {[%emt 0:05:30]} Na7 {[%emt 0:06:00]} 19. exd5 {[%emt 0:00:30]} exd5 {[%emt 0:00:30]} 20. Bxd7 {[%emt 0:06:30]} Qxd7 {[%emt 0:00:00]} 21. Qa3 {[%emt 0:00:30]} Qc7 {[%emt 0:01:00]} 22. Rfe1 {[%emt 0:02:30]} Rfe8 {[%emt 0:01:30]} 23. Nb3 {[%emt 0:00:00]} c4 {[%emt 0:05:30]} 24. Nbd2 {[%emt 0:00:00]} Nc6 {[%emt 0:01:30]} 25. Nf1 {[%emt 0:01:30]} Re7 {[%emt 0:01:30]} 26. Ne3 {[%emt 0:00:30]} Rd8 {[%emt 0:00:30]} 27. Qa1 {[%emt 0:00:30]} Bc8 {[%emt 0:00:30]} 28. Qc1 {[%emt 0:00:30]} h5 {[%emt 0:00:30]} 29. Nf1 {[%emt 0:01:30]} Rde8 {[%emt 0:03:34]} 30. Ng3 {[%emt 0:00:30]} Rxe1+ {[%emt 0:00:26]} 31. Nxe1 {[%emt 0:01:30]} Nd8 {[%emt 0:07:42]} 32. Nf3 {[%emt 0:01:30]} Ne6 {[%emt 0:00:48]} 33. Re1 {[%emt 0:01:30]} Bd7 {[%emt 0:00:21]} 34. Ne5 {[%emt 0:05:30]} Bxa4 {[%emt 0:03:55]} 35. Qh6 {[%emt 0:00:30]} Nf8 {[%emt 0:00:58]} 36. Re3 {[%emt 0:00:30]} Re6 {[%emt 0:01:22]} 37. Rf3 {[%emt 0:03:30]} Be8 {[%emt 0:00:25]} 38. Nxh5 {[%emt 0:03:30]} gxh5 {[%emt 0:00:51]} 39. Rg3+ {[%emt 0:00:30]} Rg6 {[%emt 0:00:42]} 40. Nxg6 {[%emt 0:00:30]} fxg6 {[%emt 0:00:13]} 41. Re3 {[%emt 0:01:30]} Bf7 {[%emt 0:01:04]} 42. Re5 {[%emt 0:01:30]} Be6 {[%emt 0:02:05]} 43. Qe3 {[%emt 0:00:30]} Qf7 {[%emt 0:01:12]} 44. f4 {[%emt 0:00:00]} Bf5 {[%emt 0:00:09]} 45. Re7 {[%emt 0:00:00]} Qf6 {[%emt 0:00:02]} 46. Rb7 {[%emt 0:02:30]} Be4 {[%emt 0:00:08]} 47. Qg3 {[%emt 0:01:30]} h4 {[%emt 0:02:47]} 48. Qg4 {[%emt 0:00:30]} Bf5 {[%emt 0:00:17]} 49. Qf3 {[%emt 0:00:30]} Qe6 {[%emt 0:01:31]} 50. Qf2 {[%emt 0:00:30]} Qc6 {[%emt 0:00:16]} 51. Re7 {[%emt 0:00:30]} Qf6 {[%emt 0:00:00]} 52. Re5 {[%emt 0:00:30]} Be4 {[%emt 0:00:04]} 53. Rg5 {[%emt 0:00:00]} Ne6 {[%emt 0:00:42]} 54. Rg4 {[%emt 0:00:00]} b5 {[%emt 0:00:00]} 55. Rxh4 {[%emt 0:00:30]} b4 {[%emt 0:00:00]} 56. Rg4 {[%emt 0:02:30]} bxc3 {[%emt 0:00:53]} 57. bxc3 {[%emt 0:00:00]} Bf5 {[%emt 0:01:51]} 58. Rg3 {[%emt 0:00:00]} Kf7 {[%emt 0:00:30]} 59. Re3 {[%emt 0:00:30]} Be4 {[%emt 0:00:45]} 60. g3 {[%emt 0:00:30]} Qf5 {[%emt 0:00:01]} 61. Kh2 {[%emt 0:00:30]} g5 {[%emt 0:00:32]} 62. Re1 {[%emt 0:00:30]} gxf4 {[%emt 0:00:10]} 63. g4 {[%emt 0:00:00]} Qf6 {[%emt 0:00:00]} 64. Ra1 {[%emt 0:00:00]} Ng5 {[%emt 0:02:09]} 65. h4 {[%emt 0:00:30]} Nf3+ {[%emt 0:00:30]} 66. Kh3 {[%emt 0:00:00]} Qb6 {[%emt 0:00:00]} 67. Qa2 {[%emt 0:00:00]} Nxh4 {[%emt 0:00:09]} 68. Qa4 {[%emt 0:00:30]} Ng6 {[%emt 0:00:45]} 69. Qxa5 {[%emt 0:01:30]} Qf6 {[%emt 0:00:36]} 70. Qc7+ {[%emt 0:00:30]} Ne7 {[%emt 0:00:10]} 71. Qe5 {[%emt 0:00:00]} Qxe5 {[%emt 0:00:48]} 72. dxe5 {[%emt 0:00:00]} Ke6 {[%emt 0:00:30]} 73. Ra7 {[%emt 0:00:00]} Ng6 {[%emt 0:00:00]} 74. g5 {[%emt 0:00:00]} Bf5+ {[%emt 0:00:00]} 75. Kg2 {[%emt 0:00:30]} Kxe5 {[%emt 0:00:15]} 76. Ra6 {[%emt 0:00:00]} Be4+ {[%emt 0:00:00]} 0-1

[Event "1st Turkish League 2017"]
[Site "Konya"]
[Date "2017.07.20"]
[Round "6"]
[White "Keler, Faruk"]
[Black "Erturan, Yakup"]
[Result "1/2-1/2"]
[ECO "A39"]
[WhiteElo "2262"]
[BlackElo "2371"]
[Annotator "NA"]
[PlyCount "62"]
[EventType "team-tourn"]
[EventCountry "TUR"]
[SourceTitle "playchess.com"]
[Source "ChessBase"]
[SourceQuality "1"]
[TimeControl "5400+30"]

1. Nf3 {[%emt 0:00:30]} Nf6 {[%emt 0:01:00]} 2. g3 {[%emt 0:00:00]} c5 {[%emt 0:00:30]} 3. Bg2 {[%emt 0:00:00]} Nc6 {[%emt 0:03:30]} 4. O-O {[%emt 0:04:30]} g6 $11 {[%emt 0:02:30]} 5. d4 {[%emt 0:04:30]} cxd4 {[%emt 0:00:30]} 6. Nxd4 {[%emt 0:00:30]} Bg7 {[%emt 0:00:00]} 7. c4 {[%emt 0:00:00]} O-O {[%emt 0:01:00]} 8. Nc3 {[%emt 0:00:00]} Qb6 {[%emt 0:08:30]} 9. Nc2 {[%emt 0:06:30]} d6 {[%emt 0:00:30]} 10. b3 {[%emt 0:02:30]} Bd7 {[%emt 0:04:30]} 11. Bb2 {[%emt 0:02:30]} Rfc8 {[%emt 0:06:30]} 12. Nd5 {[%emt 0:03:30]} Nxd5 {[%emt 0:02:30]} 13. Bxg7 {[%emt 0:00:00]} Nf4 {[%emt 0:10:30]} 14. Bb2 {[%emt 0:18:00]} Nxg2 {[%emt 0:01:30]} 15. Kxg2 {[%emt 0:00:30]} Ne5 {[%emt 0:09:30]} 16. Qd4 {[%emt 0:01:30]} Qxd4 {[%emt 0:00:30]} 17. Nxd4 {[%emt 0:00:30]} a6 {[%emt 0:02:30]} 18. a4 {[%emt 0:00:30]} Nc6 {[%emt 0:00:30]} 19. Nxc6 {[%emt 0:00:30]} bxc6 {[%emt 0:13:30]} 20. c5 {[%emt 0:31:30]} dxc5 {[%emt 0:05:30]} 21. Ba3 {[%emt 0:00:30]} Be6 {[%emt 0:00:30]} 22. Bxc5 {[%emt 0:00:30]} Bxb3 {[%emt 0:00:30]} 23. Rfb1 {[%emt 0:02:59]} Bd5+ {[%emt 0:07:41]} 24. f3 {[%emt 0:00:51]} Rc7 {[%emt 0:00:08]} 25. e4 {[%emt 0:01:36]} Be6 {[%emt 0:00:48]} 26. Rb6 {[%emt 0:02:52]} f6 {[%emt 0:02:52]} 27. Rab1 {[%emt 0:00:40]} Kf7 {[%emt 0:01:01]} 28. Rb7 {[%emt 0:00:42]} Rac8 {[%emt 0:00:08]} 29. R1b6 {[%emt 0:01:12]} Bc4 {[%emt 0:00:13]} 30. Rb4 {[%emt 0:00:00]} Be6 {[%emt 0:00:57]} 31. R4b6 {[%emt 0:00:13]} Bc4 {[%emt 0:00:00]} 1/2-1/2

[Event "1st Turkish League 2017"]
[Site "Konya"]
[Date "2017.07.20"]
[Round "6"]
[White "Erden, Kadir"]
[Black "Koc, Ilkay"]
[Result "1-0"]
[ECO "A16"]
[WhiteElo "2235"]
[BlackElo "2074"]
[Annotator "NA"]
[PlyCount "41"]
[EventType "team-tourn"]
[EventCountry "TUR"]
[SourceTitle "playchess.com"]
[Source "ChessBase"]
[SourceQuality "1"]
[TimeControl "5400+30"]

1. c4 {[%emt 0:00:30]} Nf6 {[%emt 0:02:00]} 2. Nc3 {[%emt 0:00:00]} b6 {[%emt 0:02:30]} 3. e4 {[%emt 0:01:00]} e5 {[%emt 0:01:30]} 4. g3 {[%emt 0:00:00]} Bb7 {[%emt 0:00:30]} 5. Bg2 {[%emt 0:00:00]} Bc5 {[%emt 0:02:30]} 6. d3 {[%emt 0:00:30]} O-O {[%emt 0:01:30]} 7. Nf3 {[%emt 0:00:30]} Re8 {[%emt 0:02:30]} 8. O-O {[%emt 0:00:30]} h6 {[%emt 0:00:30]} 9. a3 {[%emt 0:01:30]} Bf8 {[%emt 0:01:30]} 10. Nh4 {[%emt 0:02:30]} Nc6 {[%emt 0:06:30]} 11. Nf5 {[%emt 0:02:30]} Ne7 {[%emt 0:02:30]} 12. Nxe7+ {[%emt 0:16:30]} Qxe7 {[%emt 0:00:30]} 13. f4 {[%emt 0:00:30]} c6 {[%emt 0:06:30]} 14. fxe5 {[%emt 0:02:30]} Qxe5 {[%emt 0:03:30]} 15. d4 {[%emt 0:01:30]} Qe7 {[%emt 0:03:30]} 16. e5 {[%emt 0:10:30]} Nh7 {[%emt 0:00:30]} 17. Nb5 {[%emt 0:05:30]} Qd8 {[%emt 0:17:30]} 18. Qh5 {[%emt 0:01:30]} f6 {[%emt 0:06:30]} 19. Be4 {[%emt 0:07:30]} fxe5 {[%emt 0:09:30]} 20. Qf7+ {[%emt 0:01:30]} Kh8 {[%emt 0:01:30]} 21. Qg6 {[%emt 0:00:30]} 1-0

[Event "1st Turkish League 2017"]
[Site "Konya"]
[Date "2017.07.20"]
[Round "6"]
[White "Isik, Alparslan"]
[Black "Kilic, Efe Mert"]
[Result "1-0"]
[ECO "E04"]
[WhiteElo "2211"]
[BlackElo "2287"]
[Annotator "RC"]
[PlyCount "169"]
[EventType "team-tourn"]
[EventCountry "TUR"]
[SourceTitle "playchess.com"]
[Source "ChessBase"]
[SourceQuality "1"]
[TimeControl "5400+30"]

1. Nf3 {[%emt 0:00:30]} Nf6 {[%emt 0:01:00]} 2. c4 {[%emt 0:00:30]} e6 {[%emt 0:00:30]} 3. g3 {[%emt 0:00:00]} d5 {[%emt 0:00:00]} 4. d4 {[%emt 0:00:00]} dxc4 {[%emt 0:02:00]} 5. Bg2 {[%emt 0:00:00]} Bb4+ {[%emt 0:00:30]} 6. Bd2 {[%emt 0:00:00]} a5 {[%emt 0:00:00]} 7. O-O {[%emt 0:00:30]} O-O {[%emt 0:01:00]} 8. e3 {[%emt 0:02:30]} b5 {[%emt 0:15:30]} 9. a4 {[%emt 0:00:30]} Bxd2 {[%emt 0:01:30]} 10. Nfxd2 {[%emt 0:03:30]} c6 {[%emt 0:04:30]} 11. axb5 {[%emt 0:00:30]} Nd5 {[%emt 0:00:30]} 12. bxc6 {[%emt 0:09:30]} Ba6 {[%emt 0:00:30]} 13. Re1 {[%emt 0:07:30]} Nxc6 {[%emt 0:00:30]} 14. Na3 {[%emt 1:11:30]} Ncb4 {[%emt 0:20:30]} 15. Ndxc4 {[%emt 0:00:30]} Rc8 {[%emt 0:00:30]} 16. Bf1 {[%emt 0:00:00]} Qc7 {[%emt 0:02:30]} 17. Ne5 {[%emt 0:00:00]} Bxf1 {[%emt 0:14:30]} 18. Rxf1 {[%emt 0:00:00]} f6 {[%emt 0:00:30]} 19. Nd3 {[%emt 0:00:00]} Qe7 {[%emt 0:09:30]} 20. Qd2 {[%emt 0:00:00]} Nxd3 {[%emt 0:01:30]} 21. Qxd3 {[%emt 0:00:00]} Qb4 {[%emt 0:00:30]} 22. Qe2 {[%emt 0:00:00]} Qb3 {[%emt 0:01:30]} 23. Rfc1 {[%emt 0:00:00]} Nb4 {[%emt 0:05:13]} 24. Qd2 {[%emt 0:00:00]} Nd3 {[%emt 0:04:50]} 25. Rd1 {[%emt 0:00:00]} Nxb2 {[%emt 0:04:16]} 26. Rdb1 {[%emt 0:00:00]} Rb8 27. Qxa5 {[%emt 0:00:00]} Rfc8 {[%emt 0:03:38]} 28. Qd2 {[%emt 0:00:00]} Rc7 {[%emt 0:02:28]} 29. Rc1 {[%emt 0:00:00]} Ra7 {[%emt 0:03:12]} 30. Rc3 {[%emt 0:00:00]} Qb4 {[%emt 0:01:08]} 31. Qc2 {[%emt 0:00:00]} Qf8 {[%emt 0:01:09]} 32. Rb3 {[%emt 0:00:00]} Rab7 {[%emt 0:00:11]} 33. Rxb7 {[%emt 0:00:00]} Rxb7 {[%emt 0:00:01]} 34. Nc4 {[%emt 0:00:56]} Qc8 {[%emt 0:00:48]} 35. Rc1 {[%emt 0:01:02]} Nxc4 {[%emt 0:00:00]} 36. Qxc4 {[%emt 0:00:30]} Qxc4 {[%emt 0:00:00]} 37. Rxc4 {[%emt 0:00:30]} Kf7 {[%emt 0:00:11]} 38. Kg2 {[%emt 0:00:30]} Ke7 {[%emt 0:00:30]} 39. Rc2 {[%emt 0:00:30]} Kd6 {[%emt 0:00:30]} 40. Rc8 {[%emt 0:00:30]} e5 {[%emt 0:00:30]} 41. dxe5+ {[%emt 0:00:30]} Kxe5 {[%emt 0:00:30]} 42. Rh8 {[%emt 0:00:10]} g6 {[%emt 0:00:15]} 43. h4 {[%emt 0:00:27]} Re7 {[%emt 0:01:03]} 44. Kf3 {[%emt 0:00:25]} f5 {[%emt 0:00:57]} 45. Rf8 {[%emt 0:01:22]} h5 {[%emt 0:00:23]} 46. Ra8 {[%emt 0:00:31]} Re6 {[%emt 0:00:21]} 47. Ra7 {[%emt 0:00:21]} Rb6 {[%emt 0:00:07]} 48. Re7+ {[%emt 0:01:22]} Kf6 {[%emt 0:00:02]} 49. Re8 {[%emt 0:00:24]} Rb3 {[%emt 0:00:04]} 50. Rc8 {[%emt 0:00:51]} Rb6 {[%emt 0:00:08]} 51. Rc5 {[%emt 0:00:45]} Re6 {[%emt 0:00:33]} 52. Rc4 {[%emt 0:00:14]} Ra6 {[%emt 0:00:10]} 53. Kf4 {[%emt 0:00:22]} Rb6 {[%emt 0:00:25]} 54. f3 {[%emt 0:01:11]} Re6 {[%emt 0:00:25]} 55. Ra4 {[%emt 0:01:09]} Rb6 {[%emt 0:00:39]} 56. Rd4 {[%emt 0:00:06]} Ra6 {[%emt 0:00:29]} 57. e4 {[%emt 0:01:25]} fxe4 {[%emt 0:01:23]} 58. fxe4 {[%emt 0:00:05]} Ke6 {[%emt 0:01:41]} 59. Rd3 {[%emt 0:02:00]} Ra5 {[%emt 0:00:35]} 60. Rc3 {[%emt 0:00:58]} Ra6 {[%emt 0:00:11]} 61. Rb3 {[%emt 0:00:00]} Rc6 {[%emt 0:00:12]} 62. Ra3 {[%emt 0:00:30]} Rb6 {[%emt 0:00:04]} 63. Ra5 {[%emt 0:00:07]} Kf6 {[%emt 0:02:07]} 64. Rd5 {[%emt 0:00:17]} Rb4 {[%emt 0:01:26]} 65. Rd6+ {[%emt 0:00:30]} Kf7 {[%emt 0:00:00]} 66. Ke5 {[%emt 0:00:13]} Rb3 {[%emt 0:00:12]} 67. Kf4 {[%emt 0:01:43]} Rb4 {[%emt 0:00:01]} 68. Ra6 {[%emt 0:00:45]} Rc4 {[%emt 0:00:18]} 69. Ke5 {[%emt 0:00:17]} Rc5+ {[%emt 0:01:23]} 70. Kd6 {[%emt 0:01:42]} Rc3 {[%emt 0:00:01]} 71. Ra7+ {[%emt 0:00:26]} Kf6 {[%emt 0:00:04]} 72. e5+ {[%emt 0:00:18]} Kf5 {[%emt 0:00:01]} 73. e6 {[%emt 0:01:05]} Rd3+ {[%emt 0:02:05]} 74. Ke7 {[%emt 0:00:01]} Rxg3 {[%emt 0:00:34]} 75. Kf7 {[%emt 0:01:30]} Rf3 {[%emt 0:00:31]} 76. e7 {[%emt 0:00:30]} Kg4+ {[%emt 0:00:05]} 77. Kxg6 {[%emt 0:00:22]} Re3 {[%emt 0:00:30]} 78. Ra4+ {[%emt 0:00:30]} Kh3 {[%emt 0:00:00]} 79. Kf7 {[%emt 0:00:00]} Rf3+ {[%emt 0:00:00]} 80. Ke8 {[%emt 0:00:17]} Rf2 {[%emt 0:00:29]} 81. Rd4 {[%emt 0:00:30]} Ra2 {[%emt 0:00:00]} 82. Kd7 {[%emt 0:00:00]} Ra7+ {[%emt 0:00:00]} 83. Ke6 {[%emt 0:00:28]} Ra6+ {[%emt 0:00:26]} 84. Kf7 {[%emt 0:00:30]} Ra7 {[%emt 0:00:30]} 85. Kf8 {[%emt 0:00:00]} 1-0

[Event "1st Turkish League 2017"]
[Site "Konya"]
[Date "2017.07.20"]
[Round "6"]
[White "Sari, Yasin"]
[Black "Koksal, Ege"]
[Result "1/2-1/2"]
[ECO "B13"]
[WhiteElo "2195"]
[BlackElo "2390"]
[Annotator "ChessBase"]
[PlyCount "78"]
[EventType "team-tourn"]
[EventCountry "TUR"]
[SourceTitle "playchess.com"]
[Source "ChessBase"]
[SourceQuality "1"]
[TimeControl "5400+30"]

1. e4 {[%emt 0:00:30]} c6 {[%emt 0:04:00]} 2. d4 {[%emt 0:01:30]} d5 {[%emt 0:00:30]} 3. exd5 {[%emt 0:02:30]} cxd5 {[%emt 0:00:00]} 4. c3 {[%emt 0:00:30]} Nf6 {[%emt 0:00:00]} 5. Nf3 {[%emt 0:01:30]} Nc6 {[%emt 0:02:30]} 6. Ne5 {[%emt 0:05:30]} e6 {[%emt 0:23:30]} 7. Bb5 {[%emt 0:10:30]} Qb6 {[%emt 0:07:30]} 8. Qe2 {[%emt 0:00:30]} a6 {[%emt 0:14:30]} 9. Bd3 {[%emt 0:03:30]} g6 {[%emt 0:05:30]} 10. Nd2 {[%emt 0:05:30]} Bg7 {[%emt 0:00:00]} 11. Ndf3 {[%emt 0:03:30]} Nxe5 {[%emt 0:02:00]} 12. Nxe5 {[%emt 0:01:30]} Nd7 {[%emt 0:03:30]} 13. O-O {[%emt 0:06:30]} O-O {[%emt 0:00:30]} 14. Re1 {[%emt 0:06:30]} Nxe5 {[%emt 0:04:30]} 15. dxe5 {[%emt 0:00:30]} Bd7 {[%emt 0:00:00]} 16. Be3 {[%emt 0:02:30]} Qa5 {[%emt 0:02:00]} 17. Bd4 {[%emt 0:10:30]} Bb5 {[%emt 0:01:30]} 18. a4 {[%emt 0:07:30]} Bxd3 {[%emt 0:01:30]} 19. Qxd3 {[%emt 0:00:00]} Rfc8 {[%emt 0:02:30]} 20. h4 {[%emt 0:02:00]} Qc7 {[%emt 0:00:30]} 21. b3 {[%emt 0:02:30]} Bf8 {[%emt 0:00:30]} 22. h5 {[%emt 0:01:30]} Bc5 {[%emt 0:00:30]} 23. Re3 {[%emt 0:00:30]} Kf8 {[%emt 0:13:43]} 24. Rh3 {[%emt 0:02:30]} Ke7 {[%emt 0:00:05]} 25. hxg6 {[%emt 0:04:27]} hxg6 {[%emt 0:00:02]} 26. Rh7 {[%emt 0:03:30]} Bxd4 {[%emt 0:04:13]} 27. Qxg6 {[%emt 0:07:30]} Bxf2+ {[%emt 0:00:45]} 28. Kxf2 {[%emt 0:00:30]} Rf8 {[%emt 0:00:00]} 29. Qf6+ {[%emt 0:01:07]} Ke8 {[%emt 0:00:30]} 30. Rh8 {[%emt 0:01:55]} Kd7 {[%emt 0:00:18]} 31. Rxf8 {[%emt 0:00:33]} Rxf8 {[%emt 0:00:01]} 32. Qg7 {[%emt 0:02:37]} Qc5+ {[%emt 0:00:22]} 33. Ke2 {[%emt 0:00:57]} Qxc3 {[%emt 0:01:02]} 34. Qxf8 {[%emt 0:01:31]} Qxe5+ {[%emt 0:00:08]} 35. Kf2 {[%emt 0:01:53]} Qxa1 {[%emt 0:02:00]} 36. Qxf7+ {[%emt 0:00:03]} Kd6 {[%emt 0:00:00]} 37. Qf8+ {[%emt 0:00:39]} Kd7 {[%emt 0:01:04]} 38. Qf7+ {[%emt 0:00:06]} Kd6 {[%emt 0:00:19]} 39. Qf8+ {[%emt 0:00:02]} Kd7 {[%emt 0:02:03]} 1/2-1/2

[Event "1st Turkish League 2017"]
[Site "Konya"]
[Date "2017.07.20"]
[Round "6"]
[White "Caglar, Ahmet Ata"]
[Black "Gunduz, Umut Erdem"]
[Result "1-0"]
[ECO "A67"]
[WhiteElo "2082"]
[BlackElo "2066"]
[Annotator "NA"]
[PlyCount "199"]
[EventType "team-tourn"]
[EventCountry "TUR"]
[SourceTitle "playchess.com"]
[Source "ChessBase"]
[SourceQuality "1"]
[TimeControl "5400+30"]

1. d4 {[%emt 0:00:30]} Nf6 {[%emt 0:01:00]} 2. c4 {[%emt 0:00:00]} c5 {[%emt 0:00:00]} 3. d5 {[%emt 0:00:00]} e6 {[%emt 0:00:00]} 4. Nc3 {[%emt 0:00:30]} exd5 {[%emt 0:00:00]} 5. cxd5 {[%emt 0:00:30]} d6 {[%emt 0:00:00]} 6. e4 {[%emt 0:00:30]} g6 {[%emt 0:00:30]} 7. f4 {[%emt 0:00:30]} Bg7 {[%emt 0:00:30]} 8. Bb5+ {[%emt 0:00:30]} Nfd7 {[%emt 0:00:00]} 9. a4 {[%emt 0:00:00]} O-O {[%emt 0:02:00]} 10. Nf3 {[%emt 0:00:00]} Na6 {[%emt 0:02:30]} 11. O-O {[%emt 0:00:00]} Nb4 {[%emt 0:00:30]} 12. Re1 {[%emt 0:01:00]} a6 {[%emt 0:01:30]} 13. Bf1 {[%emt 0:00:30]} Re8 {[%emt 0:00:30]} 14. Nd2 {[%emt 0:12:30] A67: Modern Benoni: Taimanov Variation} (14. Be3 Nf6 15. Bf2 Nh5 16. Qd2 Bg4 17. Be2 Bh6 18. Be3 Nf6 19. h3 Bxf3 20. Bxf3 Nd7 21. a5 Rb8 22. Be2 Nf6 23. Bf3 Nd7 24. Be2 Nf6 25. Bf3 Nd7 {½-½ (25) Jakovenko,D (2725)-Gashimov,V (2734) Astrakhan 2010}) 14... Bd4+ {[%emt 0:05:30]} 15. Kh1 {[%emt 0:00:30]} Nf6 {[%emt 0:00:30]} 16. Be2 {[%emt 0:30:30]} Be3 {[%emt 0:03:30]} 17. Rf1 $146 {[%emt 0:17:30]} ({Predecessor:} 17. e5 dxe5 18. fxe5 Nfxd5 19. Nxd5 Nxd5 20. Ne4 Bxc1 21. Rxc1 Rxe5 22. Rxc5 {½-½ (33) Kokeza,M (2253)-Marholev,D (2291) Novi Sad 2015}) 17... Bxd2 {[%emt 0:02:30]} 18. Bxd2 {[%emt 0:00:30]} Nxe4 {[%emt 0:00:30]} 19. Nxe4 {[%emt 0:00:30]} Rxe4 {[%emt 0:00:00]} 20. Bf3 {[%emt 0:03:30]} Rd4 {[%emt 0:01:00]} 21. Qe2 {[%emt 0:01:30]} Nxd5 {[%emt 0:01:30]} 22. Rfe1 {[%emt 0:06:30]} Be6 {[%emt 0:03:30]} 23. f5 {[%emt 0:00:30]} Bxf5 {[%emt 0:01:30]} 24. Bc3 {[%emt 0:00:00]} Nxc3 {[%emt 0:05:30]} 25. bxc3 {[%emt 0:00:00]} Rd3 {[%emt 0:00:00]} 26. g4 {[%emt 0:04:30]} Rxf3 {[%emt 0:00:00]} 27. Qxf3 {[%emt 0:00:30]} Bd7 {[%emt 0:00:00]} 28. Qf4 {[%emt 0:03:31]} Qh4 {[%emt 0:02:00]} 29. Rad1 {[%emt 0:04:21]} Re8 {[%emt 0:02:30]} 30. Rxe8+ {[%emt 0:03:00]} Bxe8 {[%emt 0:00:00]} 31. Kg1 {[%emt 0:06:45]} Bc6 {[%emt 0:02:00]} 32. a5 {[%emt 0:01:08]} Qe7 {[%emt 0:03:30]} 33. Rf1 {[%emt 0:00:24]} Qe6 {[%emt 0:00:30]} 34. Qg3 {[%emt 0:00:28]} Qd5 {[%emt 0:04:30]} 35. g5 {[%emt 0:00:08]} c4 {[%emt 0:00:30]} 36. Rf6 {[%emt 0:00:41]} Qc5+ {[%emt 0:01:30]} 37. Kf1 {[%emt 0:00:06]} Be4 {[%emt 0:02:30]} 38. Rxd6 {[%emt 0:00:56]} Bd3+ {[%emt 0:00:30]} 39. Ke1 {[%emt 0:00:02]} Qxa5 {[%emt 0:01:30]} 40. Qe3 {[%emt 0:00:24]} Qxc3+ {[%emt 0:02:30]} 41. Kf2 {[%emt 0:00:03]} Kg7 {[%emt 0:02:30]} 42. Qf4 {[%emt 0:01:57]} Bf5 {[%emt 0:02:30]} 43. Rd4 {[%emt 0:00:50]} Qb2+ {[%emt 0:03:30]} 44. Kg1 {[%emt 0:01:09]} Qa1+ {[%emt 0:13:30]} 45. Kf2 {[%emt 0:00:30]} Qb2+ {[%emt 0:03:30]} 46. Kg1 $17 {[%emt 0:00:06]} Qa1+ {[%emt 0:04:30]} 47. Kf2 {[%emt 0:00:05]} Qa5 {[%emt 0:00:00]} 48. Rxc4 {[%emt 0:00:57]} Qb6+ {[%emt 0:05:00]} 49. Kg2 {[%emt 0:01:16]} Qb2+ {[%emt 0:01:42]} 50. Kg1 {[%emt 0:00:04]} Bh3 {[%emt 0:01:10]} 51. Qd4+ {[%emt 0:02:19]} Qxd4+ {[%emt 0:00:30]} 52. Rxd4 {[%emt 0:00:00]} Be6 {[%emt 0:01:10]} 53. Rd6 {[%emt 0:00:33]} h6 {[%emt 0:00:47]} 54. h4 {[%emt 0:00:30]} hxg5 {[%emt 0:00:30]} 55. hxg5 {[%emt 0:00:00]} Kf8 {[%emt 0:00:15]} 56. Rb6 {[%emt 0:00:00]} Bd5 {[%emt 0:00:24]} 57. Kf2 {[%emt 0:00:00]} Ke7 {[%emt 0:00:26]} 58. Ke3 {[%emt 0:00:07]} Bc6 {[%emt 0:00:00]} 59. Kd4 {[%emt 0:01:30]} f6 {[%emt 0:00:36]} 60. gxf6+ {[%emt 0:00:30]} Kxf6 {[%emt 0:00:30]} 61. Rb1 {[%emt 0:00:00]} g5 {[%emt 0:00:00]} 62. Rf1+ {[%emt 0:00:00]} Kg6 {[%emt 0:00:10]} 63. Ke5 {[%emt 0:00:00]} g4 {[%emt 0:00:20]} 64. Rf6+ {[%emt 0:00:16]} Kg5 {[%emt 0:00:30]} 65. Rf8 {[%emt 0:02:07]} Bf3 {[%emt 0:00:48]} 66. Rg8+ {[%emt 0:00:04]} Kh4 {[%emt 0:00:12]} 67. Kf4 {[%emt 0:01:23]} Kh3 {[%emt 0:00:30]} 68. Rg6 {[%emt 0:01:41]} Kg2 {[%emt 0:00:43]} 69. Ke3 {[%emt 0:00:05]} Kg3 {[%emt 0:01:08]} 70. Rb6 {[%emt 0:00:51]} a5 {[%emt 0:01:25]} 71. Rb5 {[%emt 0:00:38]} a4 {[%emt 0:00:30]} 72. Ra5 {[%emt 0:00:30]} Bc6 {[%emt 0:00:00]} 73. Rc5 {[%emt 0:00:00]} Kh4 {[%emt 0:01:11]} 74. Rc4 {[%emt 0:00:00]} a3 {[%emt 0:01:19]} 75. Kf4 {[%emt 0:01:06]} Bd5 {[%emt 0:02:25]} 76. Rc8 {[%emt 0:00:10]} Bf7 {[%emt 0:03:24]} 77. Rh8+ {[%emt 0:00:30]} Bh5 {[%emt 0:00:30]} 78. Ra8 {[%emt 0:00:30]} g3 {[%emt 0:00:00]} 79. Rxa3 {[%emt 0:00:00]} g2 {[%emt 0:00:00]} 80. Rg3 {[%emt 0:00:00]} Be8 {[%emt 0:10:59]} 81. Rxg2 {[%emt 0:00:00]} Kh3 {[%emt 0:00:03]} 82. Rg3+ {[%emt 0:00:34]} Kh2 {[%emt 0:01:09]} 83. Kf3 {[%emt 0:00:11]} Bc6+ {[%emt 0:00:16]} 84. Kf2 {[%emt 0:00:03]} b5 {[%emt 0:01:47]} 85. Rg6 {[%emt 0:00:18]} Bd7 {[%emt 0:00:02]} 86. Rh6+ {[%emt 0:01:42]} Bh3 {[%emt 0:00:02]} 87. Rb6 {[%emt 0:00:32]} Bd7 {[%emt 0:00:05]} 88. Rb7 {[%emt 0:00:41]} Bc8 {[%emt 0:00:44]} 89. Rxb5 {[%emt 0:00:09]} Kh3 {[%emt 0:00:02]} 90. Kf3 {[%emt 0:00:38]} Bg4+ {[%emt 0:00:33]} 91. Kf4 {[%emt 0:00:18]} Bc8 {[%emt 0:00:28]} 92. Rh5+ {[%emt 0:01:19]} Kg2 {[%emt 0:00:30]} 93. Rg5+ {[%emt 0:00:00]} Kh3 {[%emt 0:00:06]} 94. Rg3+ {[%emt 0:00:00]} Kh2 {[%emt 0:01:43]} 95. Kf3 {[%emt 0:00:00]} Bb7+ {[%emt 0:01:28]} 96. Kf2 {[%emt 0:00:00]} Bd5 {[%emt 0:00:21]} 97. Rg5 {[%emt 0:00:34]} Bf7 {[%emt 0:00:30]} 98. Rg7 {[%emt 0:00:00]} Be6 {[%emt 0:00:17]} 99. Rh7+ {[%emt 0:00:02]} Bh3 {[%emt 0:00:31]} 100. Rh6 {[%emt 0:00:00]} 1-0